bitfinex-derivatives/quotes_ETHF0:USTF0_20250912
["timestamp","ask_amount","ask_price","bid_price","bid_amount"]
[1757720470332,0.7034,4701.4,4701.3,0.5668]
[1757720470935,0.9772,4701.4,4700.8,3.2078]
[1757720471234,0.1634,4700.5,4700.1,3.2078]
[1757720471436,0.9772,4700.3,4700.2,0.2738]
[1757720471635,0.5417,4700.3,4700.1,3.2078]
[1757720471937,0.9772,4700.2,4700.1,3.2078]
[1757720472133,0.9772,4700.2,4700.1,3.6986]
[1757720472637,0.9772,4700.2,4700.1,3.4816]
[1757720474041,0.9772,4700.2,4700.1,3.6986]
[1757720481760,0.9772,4700.2,4700.1,3.9916]
[1757720482454,0.9772,4700.2,4700.1,3.7746]
[1757720482759,0.9772,4700.2,4700.1,3.9916]
[1757720484959,0.9772,4700.2,4700.1,3.7746]
[1757720485154,0.9772,4700.2,4700.1,3.9916]
[1757720485354,0.9772,4700.2,4700.1,3.7746]
[1757720488060,0.5417,4700.2,4699.4,3.2078]
[1757720488256,0.8562,4699.5,4699.4,3.7495]
[1757720488455,0.8562,4699.5,4699.4,3.9665]
[1757720488863,0.8562,4699.5,4699.4,4.3009]
[1757720490058,0.8562,4699.5,4699.4,4.0839]
[1757720492967,0.406,4699.5,4699.4,4.0839]
[1757720497975,0.6929,4699.5,4699.4,4.0839]
[1757720498274,0.8562,4699.5,4699.4,4.0839]
[1757720501777,0.406,4699.5,4699.4,4.0839]
[1757720503177,1.1175,4699.5,4699.4,3.7495]
[1757720503378,1.1175,4699.5,4699.4,0.5417]
[1757720503676,1.1175,4699.5,4698.9,1.86330541]
[1757720503877,1.1175,4699.0,4698.9,0.2616]
[1757720504679,0.7115,4698.5,4698.4,1.79050541]
[1757720504873,1.1175,4698.5,4698.4,1.79050541]
[1757720505070,1.1175,4698.5,4698.4,0.2616]
[1757720505868,0.8562,4698.5,4698.4,0.8761]
[1757720506079,0.1633,4699.0,4698.4,0.8761]
[1757720506270,0.7115,4699.0,4698.9,0.2616]
[1757720506474,0.7115,4699.0,4698.9,0.8665]
[1757720506673,0.4502,4699.0,4698.9,0.8665]
[1757720506873,0.8709,4699.0,4698.9,0.8665]
[1757720507877,1.1394,4699.0,4698.9,0.5417]
[1757720508776,0.8618,4699.0,4698.9,0.8665]
[1757720509379,1.1303,4699.0,4698.9,0.5417]
[1757720509785,1.1303,4699.0,4698.5,0.3248]
[1757720510187,0.855,4698.5,4698.4,1.0834]
[1757720510485,0.4411,4699.0,4698.9,0.5416]
[1757720510684,0.4411,4699.0,4698.9,0.8664]
[1757720511087,0.8618,4699.0,4698.9,0.8664]
[1757720512681,1.1303,4699.0,4698.9,0.5416]
[1757720515282,0.0638,4699.2,4698.9,0.5416]
[1757720515487,0.0638,4699.2,4699.1,0.8664]
[1757720515877,0.4845,4699.2,4699.1,0.8664]
[1757720517184,0.7623,4699.2,4699.1,0.8664]
[1757720517886,1.0405,4699.2,4699.1,0.5416]
[1757720518890,1.0405,4699.2,4699.1,0.2648]
[1757720519093,0.3884,4698.9,4698.8,3.2078]
[1757720519279,0.9225,4698.9,4698.8,3.4818]
[1757720519892,0.9225,4698.9,4698.8,3.2078]
[1757720520485,0.697,4698.5,4698.4,0.274]
[1757720520682,0.5341,4697.8,4697.7,3.4818]
[1757720520888,0.33455524,4697.8,4697.7,4.1414]
[1757720521088,0.72295524,4697.8,4697.7,4.1414]
[1757720521387,0.44475524,4697.8,4697.7,4.1414]
[1757720522689,0.9225,4698.7,4698.6,0.274]
[1757720522989,0.6443,4698.2,4698.1,1.1506]
[1757720523187,0.9225,4698.2,4698.1,0.9336]
[1757720523491,0.1629,4698.0,4697.9,0.274]
[1757720523694,0.5341,4698.0,4697.9,0.5388]
[1757720523987,0.2559,4698.0,4697.9,0.9336]
[1757720524195,0.3884,4698.0,4697.9,0.9336]
[1757720525594,0.0638,4698.4,4698.2,0.5388]
[1757720525792,0.6443,4698.3,4698.2,0.9336]
[1757720526893,0.9225,4698.3,4698.2,0.5388]
[1757720528190,0.9225,4698.3,4698.2,0.9336]
[1757720530894,0.0638,4698.4,4698.3,0.9336]
[1757720531097,0.3884,4699.3,4699.2,0.5388]
[1757720531299,0.3884,4699.3,4699.2,0.9336]
[1757720531593,0.6443,4699.3,4699.2,0.9336]
[1757720534100,0.9225,4699.3,4699.2,0.9336]
[1757720534398,0.3884,4699.2,4699.0,3.2078]
[1757720534700,0.9225,4699.1,4699.0,3.2078]
[1757720540200,1.0854,4699.0,4698.9,0.274]
[1757720541302,1.0854,4699.0,4698.9,0.5388]
[1757720541601,0.3884,4699.0,4698.9,4.1414]
[1757720541804,0.6044,4699.4,4698.9,3.7466]
[1757720542010,0.3884,4699.3,4699.2,0.9336]
[1757720542309,0.6443,4699.3,4699.2,0.9336]
[1757720542907,0.9225,4699.3,4699.2,0.5388]
[1757720543109,0.1629,4699.0,4698.9,3.2078]
[1757720543304,1.0854,4699.0,4698.9,3.2078]
[1757720543804,1.0854,4699.0,4698.9,3.4818]
[1757720544604,1.0854,4699.0,4698.9,4.1414]
[1757720551318,1.1088,4698.5,4698.4,0.5383]
[1757720551519,1.1088,4698.5,4698.4,0.9244]
[1757720551918,0.6756,4698.5,4698.4,0.9244]
[1757720552617,0.8349,4698.5,4698.4,0.9244]
[1757720555317,0.6756,4698.5,4698.4,0.9244]
[1757720557120,0.8349,4698.5,4698.4,0.9244]
[1757720557919,0.8349,4698.5,4697.8,3.2078]
[1757720557920,1.1088,4698.0,4697.8,3.2078]
[1757720558124,0.9495,4697.3,4697.2,3.483]
[1757720558618,0.9495,4697.3,4697.2,3.7461]
[1757720559223,0.9495,4697.3,4697.2,4.1322]
[1757720559516,0.1593,4697.5,4697.2,4.1322]
[1757720559721,0.4189,4697.9,4697.4,0.3861]
[1757720559920,0.6756,4698.2,4698.1,0.5383]
[1757720560122,1.19430582,4698.2,4698.1,0.9244]
[1757720560319,3.2078,4698.3,4698.2,0.3861]
[1757720560518,3.2078,4698.3,4698.2,0.9244]
[1757720560519,3.4645,4698.3,4698.2,0.9244]
[1757720560724,3.7384,4698.3,4698.2,0.5383]
[1757720560927,0.9495,4698.3,4698.2,0.9244]
[1757720561723,0.9495,4698.3,4698.2,0.5383]
[1757720562921,0.9495,4698.3,4698.2,0.2752]
[1757720565723,0.6756,4698.3,4698.2,0.9244]
[1757720566027,0.4189,4698.3,4698.2,0.9244]
[1757720566821,0.6756,4698.3,4698.2,0.9244]
[1757720568325,3.4238,4698.8,4698.2,0.5383]
[1757720568528,0.9318,4698.8,4698.7,4.12]
[1757720568728,0.6667,4698.8,4698.7,4.12]
[1757720569927,0.9318,4698.8,4698.7,4.12]
[1757720570325,0.9318,4698.8,4698.7,3.7219]
[1757720570927,0.5271,4698.3,4698.2,3.4591]
[1757720571230,0.9318,4698.3,4698.2,3.4591]
[1757720571529,0.9318,4698.3,4698.2,3.7219]
[1757720573230,0.9318,4698.3,4698.2,4.12]
[1757720573630,0.6667,4698.3,4698.2,4.12]
[1757720573825,3.2078,4699.6,4698.3,0.3981]
[1757720574038,0.6667,4699.2,4698.7,3.2078]
[1757720574236,0.9318,4699.2,4699.1,0.2513]
[1757720574535,0.9318,4699.2,4699.1,0.9122]
[1757720574938,0.9318,4699.2,4699.1,0.5141]
[1757720578734,0.9318,4699.2,4699.1,0.2513]
[1757720579634,0.1517,4699.0,4698.7,3.2078]
[1757720579836,0.5335,4698.8,4698.0,3.6161]
[1757720580136,0.6711,4698.1,4698.0,4.3635]
[1757720580831,0.6711,4698.1,4698.0,4.1475]
[1757720581032,0.9326,4698.1,4698.0,3.7392]
[1757720582043,0.272,4697.1,4697.0,0.9397]
[1757720582341,0.07242809,4697.1,4697.0,0.9397]
[1757720582538,0.73302809,4697.1,4697.0,0.9397]
[1757720583447,0.47152809,4697.1,4697.0,0.9397]
[1757720585443,0.6711,4697.2,4697.1,0.9397]
[1757720585740,0.1517,4697.0,4696.4,0.4083]
[1757720586039,0.6711,4696.5,4696.4,0.9397]
[1757720586945,0.6711,4696.9,4696.8,0.9397]
[1757720587340,0.9326,4696.9,4696.8,0.9397]
[1757720588239,0.9326,4696.9,4693.2,6.81225739]
[1757720588240,0.3991,4696.3,4695.8,0.4083]
[1757720588542,4.32191983,4699.1,4696.2,3.2078]
[1757720588843,0.1517,4698.0,4697.4,3.2078]
[1757720589056,0.1517,4698.0,4697.9,3.2078]
[1757720589439,0.4237,4698.0,4697.9,3.4238]
[1757720589640,0.1517,4698.0,4697.9,3.4238]
[1757720590637,0.5508,4698.0,4697.9,3.4238]
[1757720590837,0.8228,4698.0,4697.9,3.4238]
[1757720591039,1.0843,4698.0,4697.9,3.4238]
[1757720593244,0.5508,4698.0,4697.9,3.4238]
[1757720596551,0.5508,4698.0,4697.9,3.2078]
[1757720596751,0.5508,4698.0,4697.9,3.4238]
[1757720597951,0.5508,4698.0,4697.9,3.2078]
[1757720598149,0.5508,4698.0,4697.9,3.4238]
[1757720598952,1.0843,4698.0,4697.9,3.4238]
[1757720599151,1.0843,4697.5,4697.4,3.2078]
[1757720600144,5.0843,4697.5,4696.8,3.2078]
[1757720600344,0.9326,4696.9,4696.8,3.2078]
[1757720602148,4.9326,4696.9,4696.8,3.2078]
[1757720602345,0.9326,4696.9,4696.8,3.2078]
[1757720602549,0.6711,4696.9,4696.8,3.2078]
[1757720604449,0.3991,4696.9,4696.8,3.2078]
[1757720605449,0.6711,4696.9,4696.8,3.2078]
[1757720607155,0.3991,4696.9,4696.8,3.2078]
[1757720607647,0.3991,4696.9,4696.8,7.2078]
[1757720608453,0.9565,4696.9,4696.8,3.2078]
[1757720608752,0.9565,4696.9,4696.8,3.4238]
[1757720614161,0.6706,4696.9,4696.8,3.4238]
[1757720614760,0.9565,4696.9,4696.8,3.4238]
[1757720616866,0.3991,4696.9,4696.8,3.4238]
[1757720617565,0.1517,4697.5,4696.8,7.4238]
[1757720617763,0.5511,4697.5,4697.4,3.2078]
[1757720617959,0.5511,4697.5,4697.4,3.4238]
[1757720619455,0.8226,4697.5,4697.4,3.4238]
[1757720620060,0.8226,4697.5,4697.4,3.2078]
[1757720620267,1.1085,4697.5,4697.4,3.4238]
[1757720620456,1.1085,4697.5,4697.4,3.2078]
[1757720620662,5.1085,4697.5,4697.4,3.2078]
[1757720622364,5.1085,4697.5,4697.0,0.216]
[1757720622560,1.1085,4697.5,4697.0,0.216]
[1757720625259,1.1085,4697.5,4696.9,3.2078]
[1757720625466,0.8304,4697.0,4696.9,3.2078]
[1757720625664,0.8304,4697.0,4696.9,3.4238]
[1757720626262,0.5589,4697.0,4696.9,3.4238]
[1757720629565,0.567,4697.5,4696.9,3.4238]
[1757720629765,0.431,4697.5,4696.9,3.4238]
[1757720629967,1.1082,4697.5,4697.4,3.2078]
[1757720630272,1.1082,4697.5,4697.4,0.216]
[1757720631166,0.8529,4697.0,4696.9,3.2078]
[1757720631368,0.8529,4697.0,4696.9,3.4238]
[1757720631672,0.8529,4697.0,4696.9,3.2078]
[1757720631974,0.8529,4697.0,4696.9,3.4238]
[1757720632970,0.8529,4697.0,4696.9,3.2078]
[1757720633273,1.1148,4697.0,4696.9,3.4238]
[1757720637276,0.8529,4697.0,4696.9,3.4238]
[1757720639580,0.5736,4697.0,4696.9,3.4238]
[1757720644882,0.647,4697.5,4696.9,3.4238]
[1757720645083,0.647,4697.5,4697.4,3.2078]
[1757720645277,0.647,4697.5,4697.4,3.4238]
[1757720645477,0.5832,4697.5,4697.4,3.4238]
[1757720647075,0.1517,4698.0,4697.4,3.2078]
[1757720647383,0.1517,4698.0,4697.5,0.216]
[1757720647583,0.7039,4697.9,4697.5,0.216]
[1757720649579,0.4315,4697.9,4697.6,0.21286999]
[1757720649780,0.0638,4698.0,4697.7,0.216]
[1757720649986,0.0638,4698.0,4697.9,3.2078]
[1757720650280,0.0638,4698.0,4697.9,3.4238]
[1757720651384,0.5832,4698.5,4697.9,3.4238]
[1757720651585,0.5832,4698.5,4698.4,3.2078]
[1757720651787,0.43337694,4699.5,4698.8,0.38282]
[1757720652085,0.4318,4700.0,4699.4,3.2078]
[1757720652286,0.4318,4700.0,4699.5,0.216]
[1757720652484,0.1594,4700.0,4699.5,0.216]
[1757720652688,0.4318,4700.0,4699.5,0.216]
[1757720652880,0.7039,4699.9,4699.5,0.216]
[1757720653788,0.4315,4699.9,4699.5,0.216]
[1757720655085,0.4956,4700.0,4699.5,0.216]
[1757720655284,0.4956,4700.0,4699.9,3.2078]
[1757720655486,0.9271,4700.0,4699.9,3.4238]
[1757720655886,0.8633,4700.0,4699.9,3.4238]
[1757720658181,1.1503,4700.0,4699.9,3.4238]
[1757720662286,5.1503,4700.0,4699.9,3.2078]
[1757720662485,5.1503,4700.0,4699.3,3.2078]
[1757720662486,4.93157,4700.0,4699.3,3.2078]
[1757720662686,0.1594,4700.0,4699.3,3.2078]
[1757720662988,0.21278001,4699.9,4699.3,3.2078]
[1757720663386,0.21278001,4699.8,4699.4,0.4132]
[1757720663585,0.21278001,4699.9,4699.4,0.4132]
[1757720664191,0.21278001,4699.8,4699.4,0.4132]
[1757720664389,0.21278001,4699.9,4699.4,0.4132]
[1757720664792,0.1594,4700.0,4699.3,3.837]
[1757720664993,0.37218001,4700.0,4699.3,3.837]
[1757720665792,0.1594,4700.0,4699.3,3.837]
[1757720665988,0.37218001,4700.0,4699.3,3.621]
[1757720666293,0.37218001,4700.0,4699.3,0.216]
[1757720666294,3.2078,4699.6,4699.3,0.216]
[1757720666481,3.2078,4699.6,4699.4,0.4132]
[1757720666887,3.2078,4699.6,4699.3,0.216]
[1757720667190,0.0054,4699.4,4699.3,0.216]
[1757720667493,0.0054,4699.4,4699.3,0.6982]
[1757720670399,4.0071,4699.4,4699.3,0.4146]
[1757720670796,4.0054,4699.4,4699.3,0.4146]
[1757720671098,4.0054,4699.4,4699.3,0.6982]
[1757720672493,3.2105,4699.6,4699.5,0.73]
[1757720672700,3.2105,4699.6,4699.5,1.1446]
[1757720672900,3.2132,4699.6,4699.5,1.1446]
[1757720674500,3.2132,4699.6,4699.5,0.872]
[1757720675193,3.2149,4699.6,4699.5,0.5884]
[1757720675393,0.0017,4699.5,4699.1,0.4146]
[1757720675702,0.0054,4699.2,4699.1,0.6982]
[1757720676001,0.0054,4699.2,4699.1,0.9708]
[1757720677902,0.0027,4699.2,4699.1,0.9708]
[1757720680507,3.2132,4699.6,4699.5,0.4574]
[1757720680811,3.2132,4699.6,4699.5,0.872]
[1757720685414,3.2149,4699.6,4699.5,0.5884]
[1757720686010,3.2132,4699.6,4699.5,0.5884]
[1757720687904,7.2132,4699.6,4699.0,0.5664]
[1757720688113,0.216,4699.5,4699.1,0.3971]
[1757720689515,0.216,4699.5,4699.0,0.1693]
[1757720689907,0.216,4699.5,4699.1,0.3971]
[1757720690518,0.216,4699.5,4699.2,0.6829]
[1757720690718,0.216,4699.5,4699.3,0.2858]
[1757720690918,0.216,4699.5,4699.4,0.3971]
[1757720691218,0.73524309,4699.5,4699.4,0.3971]
[1757720693221,0.51924309,4699.5,4699.4,0.3971]
[1757720693414,0.73524309,4699.5,4699.4,0.3971]
[1757720696422,4.73524309,4699.5,4699.1,0.3971]
[1757720696622,0.51924309,4699.4,4699.1,0.3971]
[1757720696917,0.216,4699.3,4699.1,0.3971]
[1757720697119,0.216,4699.3,4699.1,0.4165]
[1757720697319,0.216,4699.3,4699.0,0.1693]
[1757720697514,3.2716,4699.6,4699.0,0.1693]
[1757720697724,0.73566502,4699.5,4699.0,0.4432]
[1757720697913,0.51966502,4699.4,4699.1,0.4165]
[1757720698118,0.216,4699.3,4699.2,0.4165]
[1757720698423,0.216,4699.3,4699.1,0.4165]
[1757720698624,0.216,4699.3,4699.1,0.2739]
[1757720698828,0.216,4699.3,4699.2,0.4165]
[1757720699019,0.73563265,4699.3,4699.2,0.4165]
[1757720699218,4.73563265,4699.3,4699.0,0.5858]
[1757720699426,3.2078,4699.1,4699.0,0.4165]
[1757720699629,3.94341233,4699.1,4699.0,0.4165]
[1757720700322,7.94341233,4699.1,4698.1,0.4165]
[1757720700625,3.2078,4698.3,4698.0,0.4376]
[1757720700815,0.73561233,4698.2,4698.1,0.9626]
[1757720702427,0.216,4698.2,4698.1,0.9626]
[1757720706628,0.216,4698.7,4698.5,0.1637]
[1757720706830,0.216,4698.7,4698.6,0.9626]
[1757720712438,3.6138,4699.8,4698.9,0.4165]
[1757720712638,0.74394042,4699.7,4699.6,0.9626]
[1757720713745,0.52794042,4699.7,4699.6,0.9626]
[1757720713936,3.4238,4699.8,4699.7,0.4165]
[1757720714139,3.95633186,4699.8,4699.7,0.9626]
[1757720714337,4.36233186,4699.8,4699.7,0.9626]
[1757720714543,4.62443186,4699.8,4699.7,0.9626]
[1757720715443,4.90013186,4699.8,4699.7,0.9626]
[1757720715934,1.69233186,4699.8,4699.7,0.9626]
[1757720716641,1.15453186,4699.8,4699.7,0.9626]
[1757720716841,0.216,4699.8,4699.7,0.9626]
[1757720717139,1.41658551,4699.8,4699.7,0.9626]
[1757720717646,0.8841,4699.8,4699.7,0.9626]
[1757720718648,1.1598,4699.8,4699.7,0.9626]
[1757720718848,1.1598,4699.8,4699.7,0.5461]
[1757720720149,1.1598,4699.8,4699.7,0.9626]
[1757720720850,1.1598,4699.8,4699.7,0.5461]
[1757720721746,1.1598,4699.8,4699.7,0.9626]
[1757720729254,1.1598,4699.8,4699.7,0.5461]
[1757720730752,1.1598,4699.8,4699.7,0.2739]
[1757720732456,1.1598,4699.8,4699.7,0.6577]
[1757720734558,1.1598,4699.8,4699.7,0.935]
[1757720735959,0.8841,4699.8,4699.7,0.935]
[1757720737059,0.6744,4700.2,4699.8,0.3838]
[1757720737253,0.2685,4700.2,4700.1,0.9241]
[1757720737558,1.07786677,4700.2,4700.1,0.9241]
[1757720737855,0.545,4699.8,4699.7,0.6468]
[1757720738160,0.9509,4699.8,4699.7,0.9241]
[1757720738854,0.4059,4700.2,4699.7,0.5403]
[1757720739161,0.6744,4700.2,4700.1,0.5403]
[1757720739460,1.20737822,4700.2,4700.1,0.9241]
[1757720740161,0.2798,4700.5,4700.1,0.5403]
[1757720740367,0.93895629,4700.4,4700.3,0.5403]
[1757720740561,1.20745629,4700.4,4700.3,0.9241]
[1757720740864,0.6744,4700.4,4700.3,0.9241]
[1757720742161,0.9509,4700.4,4700.3,0.9241]
[1757720743556,0.216,4700.5,4700.4,0.3838]
[1757720743756,0.6219,4700.5,4700.4,0.9241]
[1757720743953,0.8904,4700.5,4700.4,0.9241]
[1757720747766,0.3801,4700.8,4700.4,0.9241]
[1757720747966,0.91270236,4700.7,4700.6,0.9595]
[1757720748168,1.17660236,4700.7,4700.6,0.9595]
[1757720750564,1.43240236,4700.7,4700.6,0.9595]
[1757720752172,1.17660236,4700.7,4700.6,0.9595]
[1757720752472,0.3801,4700.7,4700.6,0.9595]
[1757720753874,0.644,4700.7,4700.6,0.9595]
[1757720755975,3.2078,4701.1,4700.6,0.9595]
[1757720756279,1.17638256,4700.9,4700.8,0.9595]
[1757720756575,0.644,4700.9,4700.8,0.9595]
[1757720757076,0.216,4701.3,4700.9,0.3798]
[1757720757373,0.216,4701.3,4700.3,3.2078]
[1757720757374,0.6929,4701.0,4700.4,0.5958]
[1757720757570,1.0936,4700.5,4700.4,0.9091]
[1757720757770,1.0936,4700.5,4700.4,0.5293]
[1757720758178,1.0936,4700.5,4700.4,0.2546]
[1757720759178,0.6714,4699.7,4699.6,0.9091]
[1757720759370,0.4007,4700.0,4699.9,0.5293]
[1757720759571,1.0936,4700.0,4699.9,0.2546]
[1757720759770,0.4007,4699.9,4699.8,3.2078]
[1757720759982,0.9349,4699.3,4699.2,3.4624]
[1757720760681,0.9349,4699.3,4699.2,3.8422]
[1757720760882,0.9349,4699.3,4699.2,3.2078]
[1757720761079,0.9349,4698.8,4698.7,3.2078]
[1757720761773,0.9349,4698.8,4698.7,4.1169]
[1757720763376,0.9349,4698.8,4698.7,3.7371]
[1757720763577,0.9349,4698.8,4698.7,3.4624]
[1757720763972,0.9349,4698.8,4698.7,3.2078]
[1757720764778,0.9349,4698.8,4698.7,3.4624]
[1757720766386,0.9349,4698.8,4698.7,0.2546]
[1757720766780,0.1587,4698.5,4698.4,0.2546]
[1757720766980,0.6929,4698.5,4698.4,0.9091]
[1757720767488,0.9349,4698.0,4697.9,0.6344]
[1757720767979,0.9349,4698.0,4697.9,0.9091]
[1757720768181,1.0936,4698.0,4697.9,0.9091]
[1757720768575,1.0936,4698.0,4697.4,3.5876]
[1757720768887,0.9349,4697.8,4697.7,0.5293]
[1757720769077,0.9349,4697.8,4697.7,0.2546]
[1757720769385,0.9349,4697.8,4697.7,0.9091]
[1757720770087,0.1587,4698.0,4697.7,0.9091]
[1757720770088,0.4007,4698.2,4697.8,0.3798]
[1757720770382,0.4007,4698.2,4698.1,0.9091]
[1757720770579,0.6714,4698.2,4698.1,0.9091]
[1757720772287,0.9349,4698.2,4698.1,0.5293]
[1757720772488,0.9349,4698.2,4697.7,0.5958]
[1757720772986,0.9349,4698.1,4698.0,0.2546]
[1757720773483,0.5342,4697.6,4697.5,0.6344]
[1757720773788,0.9349,4697.6,4697.5,0.9091]
[1757720773989,0.9349,4697.6,4697.5,0.2546]
[1757720774192,0.9349,4697.6,4697.5,0.6344]
[1757720774578,0.9349,4697.6,4697.5,0.9091]
[1757720775180,0.1587,4698.0,4697.6,0.3798]
[1757720775386,0.6714,4698.0,4697.9,0.9091]
[1757720775882,1.0936,4698.0,4697.6,0.216]
[1757720777985,0.6929,4698.0,4697.4,3.8036]
[1757720778194,0.9349,4697.5,4697.4,4.3329]
[1757720778487,1.0936,4697.5,4697.4,4.3329]
[1757720779189,1.0936,4697.5,4697.4,4.1169]
[1757720779393,1.0936,4697.5,4697.4,0.9091]
[1757720779590,1.0936,4697.5,4697.1,0.3798]
[1757720779888,1.0936,4697.5,4697.0,0.216]
[1757720780091,0.5342,4697.1,4697.0,1.1251]
[1757720780288,0.9349,4697.1,4697.0,0.2546]
[1757720780494,0.1587,4697.5,4696.9,3.2078]
[1757720780495,1.0936,4697.0,4696.9,3.2078]
[1757720780689,1.0936,4697.0,4696.9,3.4624]
[1757720781292,1.0936,4697.0,4696.9,3.8422]
[1757720781495,1.0936,4697.0,4696.9,3.4624]
[1757720781789,1.0936,4697.0,4696.9,3.2078]
[1757720781996,1.0936,4697.0,4696.9,3.4624]
[1757720782983,1.0936,4697.0,4696.9,4.1169]
[1757720786297,0.9349,4697.0,4696.9,4.1169]
[1757720789700,1.086,4697.0,4696.9,3.4624]
[1757720790899,0.9349,4697.0,4696.9,4.0886]
[1757720791101,0.6714,4697.0,4696.9,4.0886]
[1757720791298,0.3755,4697.4,4696.9,3.7096]
[1757720791498,0.1587,4697.5,4697.4,0.2593]
[1757720791499,0.6574,4697.5,4697.4,0.2593]
[1757720792000,1.0329,4697.5,4697.4,0.2593]
[1757720792195,1.0329,4697.5,4697.4,0.6383]
[1757720793002,1.0329,4697.5,4697.4,0.2593]
[1757720796301,1.78299419,4697.5,4697.4,0.2593]
[1757720798002,1.7834079,4697.5,4697.1,0.379]
[1757720798198,0.8742,4697.2,4697.1,0.6383]
[1757720798902,0.8742,4697.2,4697.1,0.8855]
[1757720799103,0.0638,4697.7,4697.2,0.379]
[1757720799304,0.0638,4697.7,4697.6,0.8855]
[1757720799500,0.5625,4697.7,4697.2,0.379]
[1757720799699,0.8742,4697.3,4697.2,0.6383]
[1757720799899,0.8742,4697.3,4697.2,0.2593]
[1757720800406,0.1511,4697.5,4696.9,3.5868]
[1757720800407,0.627,4697.0,4696.9,4.0933]
[1757720803705,0.8742,4697.0,4696.9,4.0933]
[1757720805509,1.0253,4697.0,4696.9,0.2593]
[1757720805711,1.0253,4697.0,4696.5,0.595]
[1757720806005,1.0253,4697.0,4696.5,0.8855]
[1757720806006,0.8742,4696.6,4696.5,0.8855]
[1757720806202,0.8742,4696.6,4696.5,1.1015]
[1757720808710,0.627,4696.6,4696.5,1.1015]
[1757720813012,0.627,4696.6,4696.5,0.8855]
[1757720820518,0.0638,4696.8,4696.6,0.3719]
[1757720820719,0.0638,4696.8,4696.7,0.5118]
[1757720821019,0.0638,4696.8,4696.7,0.8837]
[1757720821717,0.4645,4696.8,4696.7,0.8837]
[1757720822120,0.711,4696.8,4696.7,0.8837]
[1757720822314,0.96,4696.8,4696.7,0.8837]
[1757720825821,0.711,4696.8,4696.7,0.8837]
[1757720827118,0.0638,4696.8,4696.7,0.8837]
[1757720831626,0.96,4696.8,4696.7,0.8837]
[1757720831825,0.96,4696.8,4696.7,1.0997]
[1757720834026,0.96,4696.8,4696.7,0.8837]
[1757720834228,0.96,4696.8,4696.7,1.0997]
[1757720834429,0.8962,4696.8,4696.7,1.0997]
[1757720834826,0.8962,4696.8,4696.7,0.2452]
[1757720835024,0.8962,4696.8,4696.7,0.6171]
[1757720835327,0.8962,4697.4,4697.3,0.2452]
[1757720835526,0.8962,4697.4,4697.3,0.6171]
[1757720835923,0.8962,4697.4,4697.3,0.8837]
[1757720837331,0.8962,4697.4,4697.3,0.2452]
[1757720837928,0.8962,4697.4,4697.1,3.2078]
[1757720838231,0.8962,4697.2,4697.1,3.2078]
[1757720839236,0.0638,4697.6,4697.5,1.0335]
[1757720839424,3.2078,4698.5,4698.4,0.5118]
[1757720839631,3.74281559,4698.5,4698.4,0.8837]
[1757720839930,3.2078,4698.5,4698.4,0.8837]
[1757720840232,0.1548,4699.5,4698.5,0.3719]
[1757720840433,1.051,4699.0,4698.9,0.2452]
[1757720840632,1.58555781,4699.0,4698.9,0.2452]
[1757720841133,1.051,4699.0,4698.9,0.2452]
[1757720841333,0.1548,4699.5,4698.9,0.8837]
[1757720841529,0.4007,4699.3,4698.9,0.5118]
[1757720841735,0.6472,4699.3,4699.2,0.8837]
[1757720842136,0.8962,4699.3,4699.2,0.8837]
[1757720842431,0.4007,4699.7,4699.6,0.5118]
[1757720842637,0.4007,4699.7,4699.6,0.8837]
[1757720843033,0.1548,4700.0,4699.6,0.8837]
[1757720843226,0.4007,4699.9,4699.8,0.8837]
[1757720843431,0.4007,4700.4,4699.9,0.3719]
[1757720843629,0.8962,4700.4,4700.3,0.5118]
[1757720848036,0.6472,4700.4,4700.3,0.8809]
[1757720848439,0.3695,4700.7,4700.3,0.5118]
[1757720848638,0.0638,4700.8,4700.7,0.8848]
[1757720848838,0.3695,4701.5,4700.7,5.0998]
[1757720849036,0.8754,4701.5,4701.4,0.8848]
[1757720849237,1.0225,4701.5,4701.4,0.8848]
[1757720851635,1.0225,4701.5,4701.4,0.5157]
[1757720856843,1.0225,4701.5,4701.4,0.8848]
[1757720859751,0.614,4701.5,4701.4,0.8848]
[1757720859950,0.3695,4701.9,4701.4,0.5157]
[1757720860151,0.614,4701.8,4701.7,3.2078]
[1757720860347,0.614,4701.8,4701.7,3.7235]
[1757720860752,0.614,4701.8,4701.7,4.0926]
[1757720861250,0.8754,4701.8,4701.7,3.7235]
[1757720861450,0.8754,4701.8,4701.7,3.2078]
[1757720863147,0.8754,4701.3,4701.2,3.2078]
[1757720863351,0.1471,4701.5,4700.0,0.078]
[1757720863352,0.8754,4700.8,4700.7,3.2078]
[1757720864255,0.8754,4700.8,4700.1,3.4228]
[1757720864461,0.5059,4700.2,4700.1,3.6806]
[1757720864753,0.8754,4700.2,4700.1,3.6806]
[1757720866754,0.8754,4700.2,4700.1,4.3028]
[1757720868252,0.8754,4700.2,4700.1,3.4656]
[1757720868459,0.8944,4699.2,4699.1,3.4625]
[1757720868656,0.8944,4699.2,4698.7,0.3643]
[1757720868854,0.8944,4698.8,4698.7,0.2547]
[1757720870061,0.8944,4698.8,4698.7,0.5141]
[1757720870260,0.8944,4698.8,4698.7,0.8784]
[1757720870560,0.8944,4698.8,4698.7,0.5141]